fUSD/lending_fUSD_20250804
["ID","MTS","AMOUNT","RATE_DAILY","PERIOD"]
[377327536,1754348673120,-2825.64,0.00049557,120]
[377327537,1754348673162,-1209.57,0.00049557,120]
[377327538,1754348673200,-400.0,0.00049557,120]
[377327539,1754348673237,-1477.35,0.00049557,120]
[377327540,1754348673275,-500.0,0.00049557,10]
[377327541,1754348673310,-400.0,0.00049557,120]
[377327542,1754348673345,-400.0,0.00049557,120]
[377327543,1754348673380,-400.0,0.00049557,120]
[377327544,1754348673412,-978.44,0.00049557,120]
[377327545,1754348673445,-400.0,0.00049557,120]
[377327546,1754348673478,-3243.67,0.00049557,120]
[377327547,1754348673512,-632.93,0.00049557,120]
[377327548,1754348673555,-400.0,0.00049557,120]
[377327549,1754348673593,-1329.61,0.00049557,120]
[377327550,1754348673630,-547.73,0.00049557,120]
[377327551,1754348673668,-676.87,0.00049557,120]
[377327552,1754348673703,-400.0,0.00049557,120]
[377327553,1754348673743,-400.0,0.00049557,120]
[377327554,1754348673775,-400.0,0.00049557,120]
[377327555,1754348673797,-3877.07,0.00049557,120]
[377327556,1754348673819,-920.02,0.00049557,120]
[377327557,1754348673841,-2592.61,0.00049557,120]
[377327558,1754348673863,-432.47,0.00049557,120]
[377327559,1754348673885,-999.93,0.00049557,120]
[377327560,1754348673906,-3975.27,0.00049557,120]
[377327561,1754348673927,-1721.32,0.00049557,120]
[377327562,1754348673948,-442.63,0.00049557,120]
[377327563,1754348673970,-472.41,0.00049557,120]
[377327564,1754348673994,-4565.43,0.00049557,120]
[377327565,1754348674015,-400.0,0.00049557,120]
[377327566,1754348674036,-612.42,0.00049557,120]
[377327567,1754348674058,-4428.77,0.00049557,120]
[377327568,1754348674084,-993.56,0.00049557,120]
[377327569,1754348674829,-3299.93,0.00049557,120]
[377327570,1754348674870,-400.0,0.00049557,120]
[377327571,1754348674892,-400.0,0.00049557,120]
[377327572,1754348674914,-708.59,0.00049557,120]
[377327573,1754348674935,-638.17,0.00049557,120]
[377327574,1754348674956,-400.0,0.00049557,120]
[377327575,1754348674979,-400.0,0.00049557,120]
[377327576,1754348675003,-7989.25,0.00049557,120]
[377327577,1754348675028,-798.44,0.00049557,120]
[377327578,1754348675054,-4261.31,0.00049557,120]
[377327579,1754348675080,-400.0,0.00049557,120]
[377327580,1754348675105,-3161.32,0.00049557,120]
[377327581,1754348675129,-597.88,0.00049557,120]
[377327582,1754348675152,-400.0,0.00049557,120]
[377327583,1754348675174,-570.19,0.00049557,120]
[377327584,1754348675199,-400.0,0.00049557,120]
[377327585,1754348675223,-400.0,0.00049557,120]
[377327586,1754348675244,-2829.29,0.00049557,120]
[377327587,1754348675268,-1544.04,0.00049557,120]
[377327588,1754348675289,-400.0,0.00049557,120]
[377327589,1754348675311,-1920.67,0.00049557,120]
[377327590,1754348675332,-400.0,0.00049557,120]
[377327591,1754348675353,-422.36,0.00049557,120]
[377327592,1754348675375,-504.81,0.00049557,120]
[377327593,1754348675396,-5886.81,0.00049557,120]
[377327594,1754348675418,-1660.2,0.00049557,120]
[377327595,1754348675440,-400.0,0.00049557,120]
[377327596,1754348675462,-400.0,0.00049557,120]
[377327597,1754348675483,-400.0,0.00049557,120]
[377327598,1754348675504,-400.0,0.00049557,120]
[377327599,1754348675525,-500.0,0.00049557,120]
[377327600,1754348675547,-400.0,0.00049557,120]
[377327601,1754348675569,-400.0,0.00049557,120]
[377327602,1754348675594,-1376.48,0.00049557,120]
[377327603,1754348675618,-400.0,0.00049557,120]
[377327604,1754348675641,-1516.07,0.00049557,120]
[377327605,1754348675664,-400.0,0.00049557,120]
[377327606,1754348675687,-1551.03,0.00049557,120]
[377327607,1754348675711,-2861.73,0.00049557,120]
[377327608,1754348675736,-400.0,0.00049557,120]
[377327609,1754348675757,-400.0,0.00049557,120]
[377327610,1754348675779,-1023.79,0.00049557,120]
[377327611,1754348675801,-819.35,0.00049557,30]
[377327612,1754348675822,-461.92,0.00049557,120]
[377327613,1754348675844,-400.0,0.00049557,120]
[377327614,1754348675865,-500.0,0.00049557,120]
[377327615,1754348675886,-521.44,0.00049557,120]
[377327616,1754348675909,-4274.15,0.00049557,120]
[377327617,1754348675930,-720.03,0.00049557,120]
[377327618,1754348675955,-400.0,0.00049557,120]
[377327619,1754348675981,-1325.51,0.00049557,120]
[377327620,1754348676003,-556.42,0.00049557,120]
[377327621,1754348676026,-1984.1,0.00049557,120]
[377327622,1754348676054,-2872.33,0.00049557,120]
[377327623,1754348676081,-747.34,0.00049557,120]
[377327624,1754348676105,-14407.35,0.00049557,120]
[377327625,1754348676128,-1563.03,0.00049557,120]
[377327626,1754348676152,-2825.27,0.00049557,120]
[377327627,1754348676175,-400.0,0.00049557,120]
[377327628,1754348676201,-4399.1,0.00049557,120]
[377327629,1754348676224,-400.0,0.00049557,120]
[377327630,1754348676247,-400.0,0.00049557,120]
[377327631,1754348676269,-1268.34,0.00049557,120]
[377327632,1754348676292,-9009.58,0.00049557,120]
[377327633,1754348676315,-5082.94,0.00049557,120]
[377327634,1754348676340,-463.36,0.00049557,120]
[377327635,1754348676363,-2379.85,0.00049557,120]
[377327636,1754348676386,-400.0,0.00049557,120]
[377327637,1754348676409,-2697.74,0.00049557,120]
[377327638,1754348676434,-711.05,0.00049557,120]
[377327639,1754348676461,-891.93,0.00049557,120]
[377327640,1754348676486,-4238.87,0.00049557,120]
[377327641,1754348676510,-533.28,0.00049557,120]
[377327642,1754348676531,-647.3,0.00049557,120]
[377327643,1754348676552,-6364.9,0.00049557,120]
[377327644,1754348676572,-400.0,0.00049557,120]
[377327645,1754348676593,-400.0,0.00049557,120]
[377327646,1754348676614,-3720.96,0.00049557,120]
[377327647,1754348676635,-487.2,0.00049557,120]
[377327648,1754348676656,-400.0,0.00049557,120]
[377327649,1754348676678,-422.69,0.00049557,120]
[377327650,1754348676699,-1501.7,0.00049557,120]
[377327651,1754348676722,-1140.94,0.00049557,120]
[377327652,1754348676744,-2227.44,0.00049557,120]
[377327653,1754348676766,-761.4,0.00049557,120]
[377327654,1754348676786,-1247.66,0.00049557,120]
[377327655,1754348676807,-400.0,0.00049557,120]
[377327656,1754348676829,-400.0,0.00049557,120]
[377327657,1754348676850,-1505.55,0.00049557,120]
[377327658,1754348676871,-400.0,0.00049557,120]
[377327659,1754348676891,-1011.58,0.00049557,120]
[377327660,1754348676912,-581.18,0.00049557,120]
[377327661,1754348676932,-3009.1,0.00049557,120]
[377327662,1754348676953,-400.0,0.00049557,120]
[377327663,1754348676974,-7081.91,0.00049557,120]
[377327664,1754348676996,-1045.22,0.00049557,120]
[377327665,1754348677017,-1360.2,0.00049557,120]
[377327666,1754348677037,-500.0,0.00049557,120]
[377327667,1754348677057,-400.0,0.00049557,120]
[377327668,1754348677078,-924.15,0.00049557,120]
[377327669,1754348677098,-400.0,0.00049557,120]
[377327670,1754348677119,-3105.63,0.00049557,120]
[377327671,1754348677139,-567.55,0.00049557,120]
[377327672,1754348677160,-650.0,0.00049557,120]
[377327673,1754348677180,-1028.7703496,0.0004956,90]
[377327674,1754348677202,-150.6,0.00049561,120]
[377327675,1754348677227,-150.6,0.00049561,120]
[377327676,1754348677252,-150.6,0.00049561,120]
[377327677,1754348677276,-150.6,0.00049561,120]
[377327678,1754348677300,-150.6,0.00049561,120]
[377327679,1754348677324,-150.6,0.00049561,120]
[377327680,1754348677348,-150.6,0.00049561,120]
[377327681,1754348677372,-94659.5404707,0.00049561,4]
[377327682,1754348677395,-67613.9574791,0.00049562,4]
[377327683,1754348677418,-37876.07,0.00049563,120]
[377327684,1754348677440,-4275.64,0.00049563,120]
[377327685,1754348677462,-81136.7489749,0.00049563,4]
[377327686,1754348677482,-500.0,0.00049565,120]
[377327687,1754348677503,-500.0,0.00049565,120]
[377327688,1754348677525,-500.0,0.00049565,120]
[377327689,1754348677549,-500.0,0.00049565,120]
[377327690,1754348677574,-3850.35,0.00049571,120]
[377327691,1754348677598,-400.0,0.00049571,120]
[377327692,1754348677621,-400.0,0.00049571,120]
[377327693,1754348677644,-400.0,0.00049571,120]
[377327694,1754348677668,-3555.26,0.00049571,120]
[377327695,1754348677690,-3094.75,0.00049571,120]
[377327696,1754348677712,-400.0,0.00049571,2]
[377327697,1754348677737,-4226.0,0.00049571,120]
[377327698,1754348677760,-2549.08,0.00049571,120]
[377327699,1754348677781,-400.0,0.00049571,120]
[377327700,1754348677804,-1995.02,0.00049571,120]
[377327701,1754348677825,-543.41,0.00049571,120]
[377327702,1754348677846,-400.0,0.00049571,120]
[377327703,1754348677868,-500.0,0.00049571,120]
[377327704,1754348677891,-4361.97,0.00049571,120]
[377327705,1754348677913,-400.0,0.00049571,120]
[377327706,1754348677934,-400.0,0.00049571,120]
[377327707,1754348677955,-2223.28,0.00049571,120]
[377327708,1754348677977,-2787.54,0.00049571,120]
[377327709,1754348677998,-500.0,0.00049571,120]
[377327710,1754348678019,-2310.39,0.00049571,120]
[377327711,1754348678041,-2004.58,0.00049571,120]
[377327712,1754348678063,-3193.81,0.00049571,120]
[377327713,1754348678085,-400.0,0.00049571,120]
[377327714,1754348678106,-2904.1,0.00049571,120]
[377327715,1754348678128,-2731.74,0.00049571,120]
[377327716,1754348678393,-400.0,0.00049571,120]
[377327717,1754348678425,-500.0,0.00049571,120]
[377327718,1754348678447,-3047.23,0.00049571,120]
[377327719,1754348678468,-1199.63,0.00049571,120]
[377327720,1754348678490,-400.0,0.00049571,120]
[377327721,1754348678510,-300.0,0.00049571,120]
[377327722,1754348678531,-400.0,0.00049571,120]
[377327723,1754348678552,-400.0,0.00049571,120]
[377327724,1754348678573,-400.0,0.00049571,120]
[377327725,1754348678594,-4184.78,0.00049571,120]
[377327726,1754348678616,-400.0,0.00049571,120]
[377327727,1754348678637,-400.0,0.00049571,120]
[377327728,1754348678659,-400.0,0.00049571,16]
[377327729,1754348678681,-2566.94860244,0.00049571,120]
[377327731,1754348721214,-154.0,0.00045,120]
[377327732,1754348721234,-154.0,0.000469,120]
[377327733,1754348721257,-151.0,0.00047949,15]
[377327734,1754348721278,-250.0,0.0004858,120]
[377327735,1754348721300,-154.0,0.000487,120]
[377327736,1754348721321,-5000.0,0.00049457,120]
[377327737,1754348721342,-22394.22199038,0.00049457,15]
[377327738,1754348721363,-88888.0,0.00049477,120]
[377327739,1754348721383,-400.0,0.00049485,120]
[377327740,1754348721403,-400.0,0.00049485,120]
[377327741,1754348721423,-400.0,0.00049485,120]
[377327742,1754348721443,-619.6,0.00049485,120]
[377327743,1754348721466,-775.67,0.00049485,120]
[377327744,1754348721486,-400.0,0.00049485,120]
[377327745,1754348721506,-400.0,0.00049485,120]
[377327746,1754348721527,-400.0,0.00049485,120]
[377327747,1754348721547,-400.0,0.00049485,120]
[377327748,1754348721569,-400.0,0.00049485,120]
[377327749,1754348721589,-400.0,0.00049485,120]
[377327750,1754348721610,-1573.12,0.00049485,120]
[377327751,1754348721630,-400.0,0.00049485,120]
[377327752,1754348721650,-720.86,0.00049485,120]
[377327753,1754348721671,-400.0,0.00049485,120]
[377327754,1754348721693,-400.0,0.00049485,120]
[377327755,1754348721716,-400.0,0.00049485,120]
[377327756,1754348721737,-400.0,0.00049485,120]
[377327757,1754348721766,-400.0,0.00049485,120]
[377327758,1754348721788,-400.0,0.00049485,120]
[377327759,1754348721811,-2636.15,0.00049485,120]
[377327760,1754348721834,-400.0,0.00049485,120]
[377327761,1754348721855,-1098.02,0.00049485,120]
[377327762,1754348721876,-1182.67,0.00049485,120]
[377327763,1754348721897,-976.43,0.00049485,120]
[377327764,1754348721918,-516.0,0.00049485,120]
[377327765,1754348721941,-480.24,0.00049485,120]
[377327766,1754348721963,-1503.47,0.00049485,120]
[377327767,1754348721984,-996.34,0.00049485,120]
[377327768,1754348722007,-805.41,0.00049485,120]
[377327769,1754348722028,-2534.98,0.00049485,120]
[377327770,1754348722048,-400.0,0.00049485,120]
[377327771,1754348722069,-400.0,0.00049485,120]
[377327772,1754348722091,-1883.11,0.00049485,120]
[377327773,1754348722114,-400.0,0.00049485,120]
[377327774,1754348722136,-1221.71,0.00049485,120]
[377327775,1754348722160,-409.45,0.00049486,120]
[377327776,1754348722180,-400.0,0.00049486,120]
[377327777,1754348722202,-651.94,0.00049486,120]
[377327778,1754348722221,-400.0,0.00049486,120]
[377327779,1754348722242,-400.0,0.00049486,120]
[377327780,1754348722262,-400.0,0.00049486,120]
[377327781,1754348722283,-400.0,0.00049486,120]
[377327782,1754348722302,-1220.15,0.00049486,120]
[377327783,1754348722326,-400.0,0.00049486,120]
[377327784,1754348722346,-507.72602208,0.00049486,120]
[377327785,1754348722368,-400.0,0.00049486,120]
[377327786,1754348722388,-400.0,0.00049486,120]
[377327787,1754348722410,-2288.65,0.00049486,120]
[377327788,1754348722434,-866.79,0.00049486,120]
[377327789,1754348722456,-5878.48,0.00049486,120]
[377327790,1754348722477,-1086.27,0.00049486,120]
[377327791,1754348722497,-652.79,0.00049486,120]
[377327792,1754348722518,-400.0,0.00049486,120]
[377327793,1754348722539,-400.000001,0.00049486,120]
[377327794,1754348722560,-976.92,0.00049486,120]
[377327795,1754348722581,-740.77,0.00049486,120]
[377327796,1754348722602,-448.83,0.00049486,120]
[377327797,1754348722623,-5229.03,0.00049486,120]
[377327798,1754348722644,-22394.22199036,0.0004954,15]
[377327799,1754348722666,-7078.57,0.00049556,120]
[377327800,1754348722687,-400.0,0.00049556,120]
[377327801,1754348722709,-400.0,0.00049556,120]
[377327802,1754348722730,-400.0,0.00049556,120]
[377327803,1754348722751,-400.0,0.00049556,120]
[377327804,1754348722772,-4057.46,0.00049556,120]
[377327805,1754348722793,-400.0,0.00049556,120]
[377327806,1754348722815,-400.0,0.00049556,120]
[377327807,1754348722838,-1182.67,0.00049556,120]
[377327808,1754348722859,-400.0,0.00049556,120]
[377327809,1754348722879,-2035.46,0.00049556,120]
[377327810,1754348722900,-8141.76,0.00049557,120]
[377327811,1754348722921,-632.85,0.00049557,120]
[377327812,1754348722945,-400.0,0.00049557,120]
[377327813,1754348722966,-2262.82,0.00049557,120]
[377327814,1754348722988,-400.0,0.00049557,120]
[377327815,1754348723011,-744.527,0.00049557,87]
[377327816,1754348723033,-1259.89,0.00049557,120]
[377327817,1754348723056,-400.0,0.00049557,120]
[377327818,1754348723078,-400.0,0.00049557,120]
[377327819,1754348723098,-1154.29,0.00049557,120]
[377327820,1754348723118,-1588.95,0.00049557,120]
[377327821,1754348723140,-36297.9,0.00049557,120]
[377327822,1754348723162,-400.0,0.00049557,120]
[377327823,1754348723185,-946.09,0.00049557,120]
[377327824,1754348723208,-2185.71,0.00049563,120]
[377327825,1754348723230,-400.0,0.00049563,120]
[377327826,1754348723250,-684.07,0.0004957,120]
[377327827,1754348723271,-299.95139756,0.00049571,120]
[377327828,1754348723292,-3967.43,0.00049571,120]
[377327829,1754348723313,-400.0,0.00049571,120]
[377327830,1754348723334,-5169.06,0.00049571,120]
[377327831,1754348723355,-685.93,0.00049571,120]
[377327832,1754348723375,-2277.84,0.00049571,120]
[377327833,1754348723396,-400.0,0.00049571,120]
[377327834,1754348723416,-400.0,0.00049571,120]
[377327835,1754348723436,-3523.67,0.00049571,120]
[377327836,1754348723458,-5020.67,0.00049571,120]
[377327837,1754348723478,-470.8,0.00049571,120]
[377327838,1754348723498,-4213.79,0.00049571,120]
[377327839,1754348723519,-400.0,0.00049571,120]
[377327840,1754348723539,-2992.37,0.00049571,120]
[377327841,1754348723561,-400.0,0.00049571,120]
[377327842,1754348723582,-2175.83,0.00049571,120]
[377327843,1754348723603,-400.0,0.00049571,120]
[377327844,1754348723624,-1832.95,0.00049571,120]
[377327845,1754348723645,-904.28,0.00049571,120]
[377327846,1754348723666,-2393.35,0.00049571,120]
[377327847,1754348723687,-755.37,0.00049571,120]
[377327848,1754348723708,-400.0,0.00049571,120]
[377327849,1754348723730,-400.0,0.00049571,120]
[377327850,1754348723753,-3375.25,0.00049571,120]
[377327851,1754348723775,-4580.04,0.00049571,120]
[377327852,1754348723797,-400.0,0.00049571,120]
[377327853,1754348723818,-400.0,0.00049571,120]
[377327854,1754348723841,-400.0,0.00049571,120]
[377327855,1754348723864,-400.0,0.00049571,2]
[377327856,1754348723884,-400.0,0.00049571,120]
[377327857,1754348723906,-4897.72,0.00049571,120]
[377327858,1754348723928,-400.0,0.00049571,120]
[377327859,1754348723949,-1281.67,0.00049571,120]
[377327860,1754348723970,-3632.65,0.00049571,120]
[377327861,1754348723990,-1831.84,0.00049571,120]
[377327862,1754348724012,-400.0,0.00049571,120]
[377327863,1754348724032,-400.0,0.00049571,120]
[377327864,1754348724052,-1127.61,0.00049571,120]
[377327865,1754348724074,-400.0,0.00049571,120]
[377327866,1754348724094,-400.0,0.00049571,120]
[377327867,1754348724115,-613.01,0.00049571,120]
[377327868,1754348724136,-400.0,0.00049571,120]
[377327869,1754348724156,-400.0,0.00049571,120]
[377327870,1754348724181,-3153.1,0.00049571,120]
[377327871,1754348724202,-400.0,0.00049571,120]
[377327872,1754348724223,-300.0,0.00049571,120]
[377327873,1754348724244,-400.0,0.00049571,120]
[377327874,1754348724265,-4810.47,0.00049571,120]
[377327875,1754348724286,-2154.92,0.00049571,120]
[377327876,1754348724307,-998.51,0.00049571,120]
[377327877,1754348724328,-2930.5,0.00049571,120]
[377327878,1754348724348,-920.8,0.00049571,120]
[377327879,1754348724370,-980.65,0.00049571,120]
[377327880,1754348724390,-400.0,0.00049571,120]
[377327881,1754348724411,-3726.42,0.00049571,120]
[377327882,1754348724430,-400.0,0.00049571,120]
[377327883,1754348724451,-4488.84,0.00049571,120]
[377327884,1754348724471,-400.0,0.00049571,120]
[377327885,1754348724492,-500.0,0.00049571,120]
[377327886,1754348724515,-5449.42,0.00049571,120]
[377327887,1754348724537,-2090.59,0.00049571,120]
[377327888,1754348724557,-400.0,0.00049571,120]
[377327889,1754348724578,-4132.09,0.00049571,120]
[377327890,1754348724599,-1869.74,0.00049571,120]
[377327891,1754348724763,-5128.7,0.00049571,120]
[377327892,1754348724784,-833.4,0.00049571,120]
[377327893,1754348724806,-400.0,0.00049571,120]
[377327894,1754348724827,-3456.51,0.00049571,120]
[377327895,1754348724848,-400.0,0.00049571,120]
[377327896,1754348724869,-846.05,0.00049571,120]
[377327897,1754348724890,-400.0,0.00049571,120]
[377327898,1754348724911,-400.0,0.00049571,120]
[377327899,1754348724933,-2525.5,0.00049571,120]
[377327900,1754348724955,-400.0,0.00049571,120]
[377327901,1754348724975,-3332.8,0.00049571,120]
[377327902,1754348724996,-400.0,0.00049571,120]
[377327903,1754348725017,-400.0,0.00049571,120]
[377327904,1754348725039,-2556.05,0.00049571,120]
[377327905,1754348725061,-5098.26,0.00049571,120]
[377327906,1754348725082,-400.0,0.00049571,120]
[377327907,1754348725104,-400.0,0.00049571,120]
[377327908,1754348725125,-2657.08,0.00049571,120]
[377327909,1754348725147,-2284.13,0.00049571,120]
[377327910,1754348725168,-1059.95,0.00049571,120]
[377327911,1754348725190,-400.0,0.00049571,120]
[377327912,1754348725214,-3918.46,0.00049571,120]
[377327913,1754348725235,-400.0,0.00049571,120]
[377327914,1754348725256,-400.0,0.00049571,120]
[377327915,1754348725277,-400.0,0.00049571,120]
[377327916,1754348725299,-2149.87,0.00049571,120]
[377327917,1754348725322,-400.0,0.00049571,120]
[377327918,1754348725343,-100000.0,0.00049571,120]
[377327919,1754348725365,-400.0,0.00049571,120]
[377327920,1754348725386,-400.0,0.00049571,120]
[377327921,1754348725407,-400.0,0.00049571,120]
[377327922,1754348725428,-500.0,0.00049571,120]
[377327923,1754348725450,-2472.21,0.00049571,120]
[377327924,1754348725471,-400.0,0.00049571,120]
[377327925,1754348725493,-500.0,0.00049571,120]
[377327926,1754348725515,-1866.98,0.00049571,120]
[377327927,1754348725538,-400.0,0.00049571,120]
[377327928,1754348725562,-215.78695176,0.00049571,120]
[377327929,1754348725584,-400.0,0.00049571,120]
[377327930,1754348725606,-400.0,0.00049571,120]
[377327931,1754348725629,-2723.38,0.00049571,120]
[377327932,1754348725652,-1398.49,0.00049571,120]
[377327933,1754348725673,-400.0,0.00049571,120]
[377327934,1754348725695,-400.0,0.00049571,120]
[377327935,1754348725717,-400.0,0.00049571,120]
[377327936,1754348725738,-1809.84,0.00049571,120]
[377327937,1754348725766,-1182.67,0.00049571,120]
[377327938,1754348725787,-200.0,0.00049571,7]
[377327939,1754348725808,-451.44,0.00049571,120]
[377327940,1754348725831,-594.05233791,0.00049572,120]
[377327941,1754348725852,-173.94311723,0.00049572,120]
[377327942,1754348725874,-500.0,0.00049572,120]
[377327943,1754348725896,-500.0,0.00049572,120]
[377327944,1754348725918,-204.07183119,0.00049572,120]
[377327945,1754348725940,-500.0,0.00049572,120]
[377327946,1754348725966,-500.0,0.00049572,120]
[377327947,1754348725990,-184.4744691,0.00049572,120]
[377327948,1754348726013,-564.49756358,0.00049572,120]
[377327949,1754348726039,-500.0,0.00049572,120]
[377327950,1754348726063,-500.0,0.00049572,120]
[377327951,1754348726089,-500.0,0.00049572,120]
[377327952,1754348726114,-500.0,0.00049572,120]
[377327953,1754348726137,-500.0,0.00049572,120]
[377327954,1754348726163,-500.0,0.00049572,120]
[377327955,1754348726187,-500.0,0.00049572,120]
[377327956,1754348726210,-450.0,0.00049572,120]
[377327957,1754348726233,-400.0,0.00049572,120]
[377327958,1754348726255,-933.82,0.00049572,120]
[377327959,1754348726277,-400.0,0.00049572,120]
[377327960,1754348726303,-21975.71,0.00049572,120]
[377327961,1754348726328,-1191.51,0.00049572,120]
[377327962,1754348726351,-433.84,0.00049572,120]
[377327963,1754348726375,-400.0,0.00049572,120]
[377327964,1754348726400,-6209.51,0.00049572,120]
[377327965,1754348726424,-547.97,0.00049572,120]
[377327966,1754348726446,-532.44,0.00049572,120]
[377327967,1754348726472,-5749.99,0.00049572,120]
[377327968,1754348726494,-400.0,0.00049572,120]
[377327969,1754348726515,-733.77,0.00049572,120]
[377327970,1754348726537,-680.23,0.00049572,120]
[377327971,1754348726560,-8304.13,0.00049572,120]
[377327972,1754348726583,-265.31532785,0.00049572,120]
[377327973,1754348730121,-221.368,0.00049485,120]
[377327974,1754348733095,-178.632,0.00048646,120]
[377327976,1754348736289,-212.31,0.0004864,2]
[377327981,1754348747021,200.0,0.00022,2]
[377327982,1754348747271,200.0,0.0002,2]
[377327989,1754348764559,308.61,0.00025,10]
[377328093,1754349032127,-151.0,0.00034731,2]
[377328095,1754349032137,-705.783,0.0003475,2]
[377328097,1754349032147,-186.7,0.00040221,15]
[377328099,1754349032157,-186.7,0.00041546,120]
[377328101,1754349032166,-153.24,0.00042145,7]
[377328104,1754349032175,-186.7,0.00042871,120]
[377328107,1754349032185,-186.7,0.00044196,120]
[377328109,1754349032196,-155.0,0.00045,120]
[377328111,1754349032206,-151.0,0.00045,120]
[377328113,1754349032216,-186.7,0.0004552,120]
[377328115,1754349032226,-151.0,0.000467,120]
[377328117,1754349032236,-155.0,0.000468,120]
[377328119,1754349032246,-186.7,0.00046845,120]
[377328121,1754349032255,-150.0,0.00048083,2]
[377328123,1754349032265,-171.23,0.00048114,2]
[377328125,1754349032274,-186.7,0.0004817,120]
[377328127,1754349032284,-587.99931384,0.00048247,2]
[377328129,1754349032293,-749.41089019,0.00048411,2]
[377328131,1754349032303,-151.0,0.000485,120]
[377328133,1754349032312,-910.82246654,0.00048575,2]
[377328135,1754349032322,-155.0,0.000486,120]
[377328137,1754349032332,-3852.71066266,0.0004864,2]
[377328139,1754349032344,-263.263,0.0004864,2]
[377328145,1754349032391,-1976.86741216,0.0004864,2]
[377328147,1754349032402,-731.03756705,0.0004864,2]
[377328150,1754349032414,-1730.49367139,0.0004864,2]
[377328206,1754349037567,-1130.129,0.00043288,120]
[377328207,1754349037579,-219.871,0.00043288,120]
[377328208,1754349037590,-668.81968656,0.0004864,2]
[377328209,1754349037602,-1664.7124328,0.0004864,2]
[377328210,1754349037613,-400.59006733,0.0004864,2]
[377328252,1754349038360,-1180.09313644,0.0004864,2]
[377328254,1754349038372,-3296.01226809,0.0004864,2]
[377328257,1754349038399,-2807.44009552,0.0004864,2]
[377328260,1754349038409,-421.968,0.00048646,120]
[377328262,1754349038419,-1072.23404288,0.0004874,2]
[377328263,1754349038428,-465.17,0.00048741,30]
[377328265,1754349038438,-502.0,0.00048877,10]
[377328268,1754349038448,-500.0,0.00048877,10]
[377328270,1754349038458,-1233.64561923,0.00048904,2]
[377328271,1754349038467,-150.0,0.00049065,7]
[377328273,1754349038478,-1395.05719558,0.00049068,2]
[377328276,1754349038487,-1556.46877193,0.00049232,2]
[377328277,1754349038498,-1810.19378724,0.0004927,50]
[377328427,1754349041212,-1982.02947489,0.0004927,50]
[377328429,1754349041224,-5950.69851589,0.0004927,50]
[377328431,1754349041237,-1757.7301762,0.0004927,50]
[377328433,1754349041250,-1851.12137929,0.0004927,50]
[377328436,1754349041314,-50325.23646123,0.0004927,50]
[377328437,1754349041326,-1042.5,0.0004927,50]
[377328570,1754349042579,-204.98877399,0.000489,59]
[377328572,1754349042589,-204.9887739,0.0004898,59]
[377328574,1754349042599,-204.9887739,0.0004906,59]
[377328576,1754349042609,-204.9887739,0.0004914,59]
[377328578,1754349042618,-204.9887739,0.0004922,59]
[377328581,1754349042628,-2809.67603085,0.0004927,50]
[377328585,1754349042640,-419.90090016,0.0004927,50]
[377328744,1754349044300,-666.91216121,0.0004927,50]